fUSD/lending_fUSD_20260112
["ID","MTS","AMOUNT","RATE_DAILY","PERIOD"]
[401421842,1768201842525,-478.0,0.00013534,2]
[401421844,1768201842537,-500.0,0.00013534,2]
[401421846,1768201842547,-500.0,0.00013534,2]
[401421848,1768201842558,-500.0,0.00013534,2]
[401421850,1768201842569,-199.0,0.0001355,2]
[401421852,1768201842580,-500.0,0.00013589,2]
[401421855,1768201842591,-478.0,0.00013589,2]
[401421857,1768201842601,-500.0,0.00013589,2]
[401421859,1768201842611,-500.0,0.00013589,2]
[401421861,1768201842622,-302.0,0.00013643,2]
[401421863,1768201842634,-478.0,0.00013643,2]
[401421865,1768201842644,-500.0,0.00013643,2]
[401421867,1768201842654,-563.05189943,0.00013643,2]
[401421869,1768201842667,-925.98385699,0.00013665,2]
[401421871,1768201842678,-756.20269945,0.00013683,2]
[401421873,1768201842689,-500.0,0.00013698,2]
[401421875,1768201842699,-500.0,0.00013698,2]
[401421877,1768201842711,-500.0,0.00013698,2]
[401421879,1768201842721,-500.0,0.00013698,2]
[401421881,1768201842731,-500.0,0.00013698,2]
[401421883,1768201842743,-500.0,0.00013698,2]
[401421885,1768201842754,-500.0,0.00013698,2]
[401421887,1768201842764,-500.0,0.00013698,2]
[401421889,1768201842774,-500.0,0.00013698,2]
[401421891,1768201842784,-500.0,0.00013698,2]
[401421893,1768201842795,-542.67459147,0.00013698,2]
[401421895,1768201842805,-500.0,0.00013698,2]
[401421897,1768201842814,-500.0,0.00013698,2]
[401421899,1768201842825,-500.0,0.00013698,2]
[401421901,1768201842834,-502.89153827,0.00013698,2]
[401421903,1768201842844,-500.0,0.00013698,2]
[401421905,1768201842854,-559.68593167,0.00013698,2]
[401421907,1768201842864,-500.0,0.00013698,2]
[401421909,1768201842874,-500.0,0.00013698,2]
[401421910,1768201842884,-500.0,0.00013698,2]
[401421913,1768201842895,-500.0,0.00013698,2]
[401421914,1768201842907,-500.0,0.00013698,2]
[401421916,1768201842918,-500.0,0.00013698,2]
[401421919,1768201842929,-500.0,0.00013698,2]
[401421920,1768201842939,-262.73857183,0.00013698,2]
[401421922,1768201842949,-500.0,0.00013698,2]
[401421924,1768201842959,-500.0,0.00013698,2]
[401421927,1768201842969,-500.0,0.00013698,2]
[401421930,1768201842980,-500.0,0.00013698,2]
[401421933,1768201842990,-500.0,0.00013698,2]
[401421935,1768201843001,-500.0,0.00013698,2]
[401421938,1768201843015,-500.0,0.00013698,2]
[401421940,1768201843027,-500.0,0.00013698,2]
[401421943,1768201843038,-500.0,0.00013698,2]
[401421945,1768201843049,-500.0,0.00013698,2]
[401421946,1768201843060,-500.0,0.00013698,2]
[401421948,1768201843070,-500.0,0.00013698,2]
[401421950,1768201843080,-500.0,0.00013698,2]
[401421953,1768201843090,-500.0,0.00013698,2]
[401421956,1768201843101,-507.98742565,0.00013698,2]
[401421959,1768201843111,-500.0,0.00013698,2]
[401421961,1768201843121,-500.0,0.00013698,2]
[401421964,1768201843132,-500.0,0.00013698,2]
[401421965,1768201843144,-317.23562895,0.00013698,2]
[401421968,1768201843154,-500.70750239,0.00013698,2]
[401421969,1768201843164,-519.22178049,0.00013698,2]
[401421971,1768201843175,-500.0,0.00013698,2]
[401421973,1768201843186,-500.0,0.00013698,2]
[401421976,1768201843197,-500.0,0.00013698,2]
[401421978,1768201843207,-500.0,0.00013698,2]
[401421980,1768201843219,-404.51117323,0.00013698,2]
[401421981,1768201843230,-500.0,0.00013698,2]
[401421984,1768201843242,-500.0,0.00013698,2]
[401421986,1768201843253,-500.0,0.00013698,2]
[401421988,1768201843263,-500.0,0.00013698,2]
[401421990,1768201843274,-500.0,0.00013698,2]
[401421992,1768201843285,-500.0,0.00013698,2]
[401421994,1768201843295,-500.0,0.00013698,2]
[401421996,1768201843305,-500.0,0.00013698,2]
[401421998,1768201843315,-520.50202631,0.00013698,2]
[401422000,1768201843325,-1556.5,0.00013698,2]
[401422002,1768201843335,-500.0,0.00013698,2]
[401422004,1768201843344,-500.0,0.00013698,2]
[401422006,1768201843354,-500.0,0.00013698,2]
[401422008,1768201843364,-500.0,0.00013698,2]
[401422010,1768201843374,-500.0,0.00013698,2]
[401422012,1768201843384,-500.0,0.00013698,2]
[401422014,1768201843394,-500.0,0.00013698,2]
[401422016,1768201843404,-500.0,0.00013698,2]
[401422018,1768201843413,-500.0,0.00013698,2]
[401422020,1768201843423,-500.0,0.00013698,2]
[401422022,1768201843433,-500.0,0.00013698,2]
[401422024,1768201843443,-500.0,0.00013698,2]
[401422026,1768201843453,-500.0,0.00013698,2]
[401422028,1768201843462,-500.0,0.00013698,2]
[401422030,1768201843473,-500.0,0.00013698,2]
[401422032,1768201843483,-500.0,0.00013698,2]
[401422034,1768201843493,-500.0,0.00013698,2]
[401422036,1768201843503,-551.14146089,0.00013698,2]
[401422038,1768201843513,-478.0,0.00013698,2]
[401422040,1768201843525,-508.57149455,0.00013698,2]
[401422042,1768201843535,-2395.75,0.00013699,2]
[401422045,1768201843545,-478.0,0.00013753,2]
[401422047,1768201843555,-166.66,0.00013803,2]
[401422049,1768201843565,-478.0,0.00013808,2]
[401422051,1768201843575,-500.0,0.00013808,2]
[401422053,1768201843586,-478.0,0.00013863,2]
[401422055,1768201843595,-478.0,0.00013917,2]
[401422057,1768201843605,-11536.32618384,0.00013945,2]
[401422059,1768201843616,-1556.5,0.00013972,2]
[401422061,1768201843627,-478.0,0.00013972,2]
[401422063,1768201843636,-255.0,0.00014011,2]
[401422064,1768201843646,-478.0,0.00014027,2]
[401422066,1768201843657,-302.0,0.00014055,2]
[401422068,1768201843669,-420.0,0.00014055,2]
[401422070,1768201843679,-478.0,0.00014082,2]
[401422072,1768201843689,-1680.0,0.00014095,2]
[401422074,1768201843699,-500.0,0.00014135,2]
[401422077,1768201843711,-478.0,0.00014137,2]
[401422079,1768201843721,-420.0,0.00014163,2]
[401422081,1768201843731,-235.1,0.00014164,2]
[401422083,1768201843743,-478.0,0.00014191,2]
[401422085,1768201843752,-2000.0,0.000142,2]
[401422087,1768201843762,-200.0,0.000142,2]
[401422089,1768201843771,-600.0,0.00014206,2]
[401422091,1768201843781,-600.0,0.00014206,2]
[401422093,1768201843791,-555.91190523,0.00014206,2]
[401422095,1768201843801,-300.0,0.00014206,2]
[401422097,1768201843810,-300.0,0.00014206,2]
[401422099,1768201843819,-250.0,0.00014206,2]
[401422101,1768201843829,-195.0,0.00014206,2]
[401422103,1768201843840,-600.0,0.00014206,2]
[401422104,1768201843849,-600.0,0.00014206,2]
[401422106,1768201843859,-166.66,0.00014231,2]
[401422108,1768201843868,-1556.5,0.00014246,2]
[401422110,1768201843877,-478.0,0.00014246,2]
[401422112,1768201843887,-330.15,0.0001427,2]
[401422114,1768201843897,-478.0,0.00014301,2]
[401422116,1768201843907,-200.0,0.00014342,2]
[401422118,1768201843918,-478.0,0.00014356,2]
[401422121,1768201843928,-2395.75,0.00014384,2]
[401422123,1768201843938,-478.0,0.0001441,2]
[401422125,1768201843948,-488.61147328,0.00014465,2]
[401422127,1768201843957,-11536.32618384,0.0001451,2]
[401422128,1768201843967,-925.98385699,0.00014512,2]
[401422131,1768201843976,-1556.5,0.0001452,2]
[401422133,1768201843986,-500.0,0.00014532,2]
[401422135,1768201843996,-500.0,0.00014532,2]
[401422137,1768201844005,-500.0,0.00014532,2]
[401422138,1768201844015,-500.0,0.00014532,2]
[401422140,1768201844024,-500.0,0.00014578,2]
[401422143,1768201844034,-166.66,0.00014658,2]
[401422145,1768201844043,-1000.0,0.00014761,2]
[401422147,1768201844053,-1556.5,0.00014794,2]
[401422149,1768201844062,-151.0,0.00014837,2]
[401422151,1768201844071,-151.0,0.00014837,2]
[401422153,1768201844081,-235.1,0.00014872,2]
[401422155,1768201844090,-1000.0,0.00014935,2]
[401422157,1768201844100,-1047.04298225,0.00015065,2]
[401422159,1768201844109,-1556.5,0.00015068,2]
[401422161,1768201844120,-332.33,0.00015068,2]
[401422163,1768201844129,-2395.75,0.00015068,2]
[401422165,1768201844139,-11536.32618384,0.00015075,2]
[401422167,1768201844148,-166.66,0.00015085,2]
[401422169,1768201844158,-433.0,0.00015199,2]
[401422171,1768201844167,-1556.5,0.00015342,2]
[401422174,1768201844177,-925.98385699,0.00015359,2]
[401422177,1768201844186,-587.0,0.00015416,2]
[401422180,1768201844195,-2351.0,0.00015504,2]
[401422182,1768201844208,-587.0,0.00015534,2]
[401422184,1768201844219,-235.1,0.00015581,2]
[401422186,1768201844228,-1556.5,0.00015616,2]
[401422188,1768201844237,-3731.00451843,0.0001564,2]
[401422190,1768201844249,-11536.32618384,0.0001564,2]
[401422192,1768201844258,-2395.75,0.00015753,2]
[401422194,1768201844268,-182.96,0.00015787,2]
[401422196,1768201844277,-1556.5,0.0001589,2]
[401422198,1768201844286,-1000.0,0.00015918,2]
[401422200,1768201844296,-65595.25692836,0.00016098,2]
[401422202,1768201844305,-9999.99,0.00016116,2]
[401422204,1768201844316,-330.15,0.00016146,2]
[401422206,1768201844326,-1556.5,0.00016164,2]
[401422208,1768201844335,-150.0,0.000162,2]
[401422210,1768201844344,-150.0,0.000162,2]
[401422212,1768201844354,-150.0,0.000162,2]
[401422214,1768201844363,-331.18764993,0.000162,2]
[401422216,1768201844372,-150.0,0.000162,2]
[401422219,1768201844381,-150.0,0.000162,2]
[401422221,1768201844393,-150.64069561,0.000162,2]
[401422223,1768201844403,-150.0,0.000162,2]
[401422225,1768201844412,-150.0,0.000162,2]
[401422227,1768201844422,-150.48103859,0.000162,2]
[401422229,1768201844431,-150.0,0.000162,2]
[401422230,1768201844440,-150.5110912,0.000162,2]
[401422232,1768201844450,-150.0,0.000162,2]
[401422235,1768201844459,-150.0,0.000162,2]
[401422237,1768201844470,-150.0,0.000162,2]
[401422239,1768201844479,-8283.0,0.00016205,2]
[401422241,1768201844489,-11536.32618384,0.00016205,2]
[401422242,1768201844498,-925.98385699,0.00016206,2]
[401422245,1768201844509,-331.18764993,0.00016218,2]
[401422246,1768201844519,-331.18764993,0.00016236,2]
[401422249,1768201844528,-331.18764993,0.00016255,2]
[401422251,1768201844538,-331.18764993,0.00016273,2]
[401422252,1768201844547,-150.0,0.00016275,2]
[401422253,1768201844556,-150.0,0.00016275,2]
[401422254,1768201844566,-235.1,0.00016289,2]
[401422255,1768201844575,-150.0,0.0001629,2]
[401422256,1768201844584,-331.18764993,0.00016291,2]
[401422257,1768201844594,-500.0,0.00016301,2]
[401422258,1768201844603,-331.18764993,0.00016309,2]
[401422259,1768201844612,-150.0,0.00016312,2]
[401422260,1768201844621,-150.0,0.00016312,2]
[401422261,1768201844630,-150.0,0.0001632,2]
[401422263,1768201844640,-331.18764993,0.00016327,2]
[401422265,1768201844652,-150.0,0.00016329,2]
[401422267,1768201844661,-150.0,0.00016338,2]
[401422269,1768201844681,-331.18764993,0.00016345,2]
[401422271,1768201844696,-150.0,0.0001635,2]
[401422273,1768201844706,-150.0,0.0001635,2]
[401422275,1768201844716,-331.18764993,0.00016364,2]
[401422277,1768201844725,-150.0,0.0001638,2]
[401422279,1768201844734,-331.18764993,0.00016382,2]
[401422281,1768201844743,-331.18764993,0.000164,2]
[401422283,1768201844752,-150.0,0.000164,2]
[401422285,1768201844761,-331.18764993,0.00016418,2]
[401422287,1768201844771,-150.0,0.00016425,2]
[401422289,1768201844780,-150.0,0.00016425,2]
[401422292,1768201844789,-150.0,0.00016425,2]
[401422294,1768201844809,-150.0,0.00016425,2]
[401422296,1768201844819,-331.18764993,0.00016436,2]
[401422298,1768201844829,-500.0,0.00016438,2]
[401422301,1768201844839,-306.89017358,0.00016438,2]
[401422303,1768201844848,-1556.5,0.00016438,2]
[401422305,1768201844858,-226.66,0.00016438,2]
[401422307,1768201844867,-332.33,0.00016438,2]
[401422309,1768201844877,-1011.91,0.00016438,10]
[401422311,1768201844886,-2395.75,0.00016438,2]
[401422313,1768201844895,-800.75292195,0.00016438,2]
[401422315,1768201844905,-151.0,0.00016438,2]
[401422317,1768201844915,-150.0,0.0001644,2]
[401422319,1768201844925,-165.11,0.0001644,2]
[401422321,1768201844934,-331.18764993,0.00016455,2]
[401422323,1768201844943,-150.0,0.00016457,2]
[401422325,1768201844952,-150.0,0.00016457,2]
[401422327,1768201844962,-150.0,0.0001647,2]
[401422329,1768201844971,-331.18764993,0.00016473,2]
[401422331,1768201844981,-150.0,0.00016477,2]
[401422333,1768201844990,-182.96,0.00016488,2]
[401422335,1768201845000,-331.18764993,0.00016491,2]
[401422337,1768201845009,-736.0,0.00016491,2]
[401422339,1768201845018,-150.0,0.000165,2]
[401422341,1768201845027,-150.0,0.000165,2]
[401422343,1768201845038,-331.18764993,0.00016509,2]
[401422345,1768201845047,-1000.0,0.00016515,2]
[401422347,1768201845056,-331.18764993,0.00016527,2]
[401422349,1768201845066,-150.0,0.00016537,2]
[401422351,1768201845075,-150.0,0.00016537,2]
[401422353,1768201845085,-331.18764993,0.00016545,2]
[401422355,1768201845095,-150.0,0.0001656,2]
[401422357,1768201845104,-150.0,0.0001656,2]
[401422359,1768201845113,-331.18764993,0.00016564,2]
[401422361,1768201845122,-150.0,0.00016575,2]
[401422363,1768201845132,-150.0,0.00016575,2]
[401422365,1768201845141,-331.18764993,0.00016582,2]
[401422367,1768201845150,-150.0,0.00016586,2]
[401422369,1768201845160,-331.18764993,0.000166,2]
[401422371,1768201845170,-150.0,0.000166,2]
[401422373,1768201845179,-150.0,0.00016615,2]
[401422375,1768201845189,-331.18764993,0.00016618,2]
[401422377,1768201845198,-152.14276638,0.00016623,2]
[401422380,1768201845209,-331.18764993,0.00016636,2]
[401422381,1768201845220,-150.0,0.0001665,2]
[401422384,1768201845229,-150.0,0.0001665,2]
[401422386,1768201845238,-150.0,0.0001665,2]
[401422388,1768201845247,-150.0,0.0001665,2]
[401422390,1768201845257,-150.0,0.0001665,2]
[401422392,1768201845268,-331.18764993,0.00016655,2]
[401422394,1768201845277,-330.15,0.00016667,2]
[401422396,1768201845287,-331.18764993,0.00016673,2]
[401422398,1768201845296,-150.0,0.0001668,2]
[401422400,1768201845306,-331.18764993,0.00016691,2]
[401422402,1768201845316,-331.18764993,0.00016709,2]
[401422404,1768201845325,-1556.55456864,0.00016712,2]
[401422406,1768201845335,-150.0,0.00016714,2]
[401422408,1768201845348,-150.0,0.00016714,2]
[401422410,1768201845358,-150.0,0.00016725,2]
[401422412,1768201845367,-150.0,0.00016725,2]
[401422414,1768201845377,-331.18764993,0.00016727,2]
[401422417,1768201845387,-150.0,0.0001674,2]
[401422419,1768201845397,-331.18764993,0.00016745,2]
[401422421,1768201845406,-150.0,0.00016754,2]
[401422423,1768201845416,-150.0,0.00016762,2]
[401422425,1768201845426,-150.0,0.00016762,2]
[401422427,1768201845436,-331.18764993,0.00016764,2]
[401422429,1768201845445,-10180.70758026,0.0001677,2]
[401422431,1768201845455,-11536.32618384,0.0001677,2]
[401422433,1768201845465,-331.18764993,0.00016782,2]
[401422435,1768201845474,-150.0,0.000168,2]
[401422437,1768201845484,-150.0,0.000168,2]
[401422439,1768201845493,-331.18764993,0.000168,2]
[401422441,1768201845503,-150.0,0.000168,2]
[401422443,1768201845512,-150.0,0.000168,2]
[401422445,1768201845522,-1000.0,0.00016813,2]
[401422447,1768201845532,-331.18764993,0.00016818,2]
[401422449,1768201845541,-150.0,0.0001683,2]
[401422451,1768201845551,-331.18764993,0.00016836,2]
[401422453,1768201845560,-150.0,0.00016843,2]
[401422455,1768201845570,-331.18764993,0.00016855,2]
[401422458,1768201845579,-331.18764993,0.00016873,2]
[401422460,1768201845588,-150.0,0.00016875,2]
[401422462,1768201845598,-150.0,0.00016875,2]
[401422464,1768201845607,-150.0,0.00016875,2]
[401422466,1768201845617,-150.0,0.00016875,2]
[401422468,1768201845627,-1073.4,0.00016885,2]
[401422470,1768201845638,-331.18764993,0.00016891,2]
[401422472,1768201845647,-150.0,0.00016892,2]
[401422474,1768201845657,-331.18764993,0.00016909,2]
[401422476,1768201845668,-823.0,0.0001691,2]
[401422478,1768201845678,-150.0,0.0001692,2]
[401422480,1768201845688,-150.0,0.0001692,2]
[401422481,1768201845703,-331.18764993,0.00016927,2]
[401422483,1768201845715,-331.18764993,0.00016945,2]
[401422485,1768201845726,-150.0,0.0001695,2]
[401422487,1768201845737,-150.0,0.0001695,2]
[401422490,1768201845746,-331.18764993,0.00016964,2]
[401422492,1768201845758,-150.0,0.00016971,2]
[401422494,1768201845767,-150.0,0.00016971,2]
[401422496,1768201845777,-331.18764993,0.00016982,2]
[401422498,1768201845786,-1073.4,0.00016986,2]
[401422500,1768201845795,-150.0,0.00016987,2]
[401422502,1768201845805,-150.0,0.00016987,2]
[401422504,1768201845815,-235.1,0.00016997,2]
[401422505,1768201845833,-331.18764993,0.00017,2]
[401422507,1768201845843,-150.0,0.00017,2]
[401422510,1768201845854,-150.0,0.0001701,2]
[401422512,1768201845875,-331.18764993,0.00017018,2]
[401422514,1768201845886,-150.0,0.00017025,2]
[401422516,1768201845898,-150.0,0.00017025,2]
[401422518,1768201845908,-150.0,0.00017031,2]
[401422520,1768201845918,-331.18764993,0.00017036,2]
[401422522,1768201845928,-823.0,0.00017037,2]
[401422524,1768201845938,-150.0,0.0001704,2]
[401422526,1768201845947,-843.0,0.0001704,2]
[401422528,1768201845957,-162.0,0.0001704,2]
[401422530,1768201845967,-965.81,0.00017041,2]
[401422532,1768201845976,-1200.62,0.00017041,2]
[401422534,1768201845986,-483.1,0.00017041,2]
[401422536,1768201845995,-483.1,0.00017041,2]
[401422538,1768201846004,-482.52,0.00017041,2]
[401422540,1768201846014,-925.98385699,0.00017053,2]
[401422578,1768201846307,-331.18764993,0.00017055,2]
[401422580,1768201846347,-3292.0,0.00017055,2]
[401422582,1768201846357,-250.0,0.00017064,2]
[401422584,1768201846366,-630.29424855,0.00017072,2]
[401422586,1768201846375,-503.84192068,0.00017073,2]
[401422588,1768201846385,-500.0,0.00017073,2]
[401422590,1768201846394,-500.0,0.00017073,2]
[401422592,1768201846405,-500.0,0.00017073,2]
[401422594,1768201846415,-173.30819609,0.00017073,2]
[401422596,1768201846425,-500.64635657,0.00017073,2]
[401422598,1768201846434,-500.0,0.00017073,2]
[401422600,1768201846443,-500.0,0.00017073,2]
[401422602,1768201846453,-500.0,0.00017073,2]
[401422604,1768201846463,-500.0,0.00017073,2]
[401422606,1768201846472,-500.51842778,0.00017073,2]
[401422608,1768201846481,-500.0,0.00017073,2]
[401422610,1768201846491,-540.4577012,0.00017073,2]
[401422613,1768201846500,-500.0,0.00017073,2]
[401422615,1768201846511,-500.85931304,0.00017073,2]
[401422617,1768201846520,-162.59101262,0.00017073,2]
[401422619,1768201846530,-501.85422751,0.00017073,2]
[401422621,1768201846539,-500.0,0.00017073,2]
[401422623,1768201846548,-500.0,0.00017073,2]
[401422625,1768201846558,-500.19211788,0.00017073,2]
[401422627,1768201846568,-486.88056707,0.00017073,2]
[401422629,1768201846582,-500.83788468,0.00017073,2]
[401422632,1768201846593,-647.42016729,0.00017073,2]
[401422634,1768201846603,-169.17232811,0.00017073,2]
[401422636,1768201846612,-500.84079337,0.00017073,2]
[401422638,1768201846622,-500.0,0.00017073,2]
[401422640,1768201846632,-500.0,0.00017073,2]
[401422642,1768201846642,-500.26791262,0.00017073,2]
[401422644,1768201846652,-500.0,0.00017073,2]
[401422646,1768201846662,-500.38035534,0.00017073,2]
[401422648,1768201846675,-500.53829083,0.00017073,2]
[401422650,1768201846685,-500.57959935,0.00017073,2]
[401422651,1768201846694,-500.32712274,0.00017073,2]
[401422652,1768201846703,-503.00247421,0.00017073,2]
[401422653,1768201846714,-500.0,0.00017073,2]
[401422654,1768201846723,-163.4155148,0.00017073,2]
[401422655,1768201846732,-500.0,0.00017073,2]
[401422656,1768201846742,-331.18764993,0.00017073,2]
[401422657,1768201846752,-30000.0,0.00017088,2]
[401422658,1768201846761,-1073.4,0.00017088,2]
[401422659,1768201846771,-331.18764993,0.00017091,2]
[401422661,1768201846780,-533.88981491,0.00017099,2]
[401422663,1768201846790,-151.0,0.00017099,2]
[401422665,1768201846800,-620.0,0.00017099,2]
[401422667,1768201846809,-322.6107,0.00017099,2]
[401422669,1768201846819,-998.0,0.00017099,2]
[401422671,1768201846828,-307.00510982,0.00017099,2]
[401422673,1768201846838,-150.0,0.000171,2]
[401422676,1768201846848,-150.0,0.000171,2]
[401422678,1768201846858,-150.0,0.000171,2]
[401422680,1768201846867,-150.0,0.000171,2]
[401422682,1768201846876,-150.0,0.000171,2]
[401422684,1768201846886,-150.0,0.000171,2]
[401422685,1768201846895,-150.0,0.000171,2]
[401422688,1768201846905,-331.18764993,0.00017109,2]
[401422690,1768201846915,-1000.0,0.0001711,2]
[401422692,1768201846924,-1000.0,0.00017112,2]
[401422694,1768201846934,-331.18764993,0.00017127,2]
[401422696,1768201846943,-331.18764993,0.00017145,2]
[401422698,1768201846953,-150.0,0.0001716,2]
[401422700,1768201846963,-331.18764993,0.00017164,2]
[401422702,1768201846972,-150.0,0.00017169,2]
[401422704,1768201846982,-200.0,0.00017174,2]
[401422706,1768201846992,-150.0,0.00017175,2]
[401422708,1768201847002,-150.0,0.00017175,2]
[401422710,1768201847012,-466.84,0.00017178,2]
[401422712,1768201847021,-1110.36,0.00017178,2]
[401422714,1768201847031,-331.18764993,0.00017182,2]
[401422716,1768201847041,-1073.4,0.00017189,2]
[401422718,1768201847050,-150.0,0.0001719,2]
[401422720,1768201847060,-331.18764993,0.000172,2]
[401422722,1768201847070,-150.0,0.000172,2]
[401422724,1768201847079,-1000.0,0.000172,2]
[401422726,1768201847089,-3400.0,0.000172,6]
[401422728,1768201847099,-1000.0,0.00017202,2]
[401422730,1768201847109,-150.0,0.00017212,2]
[401422732,1768201847119,-150.0,0.00017212,2]
[401422735,1768201847132,-331.18764993,0.00017218,2]
[401422737,1768201847142,-150.0,0.00017229,2]
[401422739,1768201847153,-150.0,0.00017229,2]
[401422741,1768201847163,-220.1,0.00017234,2]
[401422743,1768201847174,-331.18764993,0.00017236,2]
[401422745,1768201847184,-150.0,0.0001725,2]
[401422747,1768201847194,-150.0,0.0001725,2]
[401422749,1768201847204,-331.18764993,0.00017255,2]
[401422751,1768201847214,-243.94665552,0.00017262,2]
[401422754,1768201847224,-331.18764993,0.00017273,2]
[401422756,1768201847234,-469.78735424,0.00017279,2]
[401422758,1768201847246,-220.1,0.00017279,2]
[401422760,1768201847255,-150.0,0.0001728,2]
[401422762,1768201847265,-150.0,0.0001728,2]
[401422764,1768201847276,-1073.4,0.0001729,2]
[401422766,1768201847287,-331.18764993,0.00017291,2]
[401422768,1768201847297,-158.73335703,0.00017298,2]
[401422770,1768201847307,-4600.0,0.000173,6]
[401422772,1768201847316,-150.0,0.00017308,2]
[401422774,1768201847326,-331.18764993,0.00017309,2]
[401422776,1768201847336,-150.0,0.00017325,2]
[401422778,1768201847346,-150.0,0.00017325,2]
[401422780,1768201847356,-150.0,0.00017325,2]
[401422782,1768201847366,-150.0,0.00017325,2]
[401422784,1768201847376,-331.18764993,0.00017327,2]
[401422786,1768201847387,-1000.0,0.00017334,2]
[401422789,1768201847397,-10180.70758026,0.00017335,2]
[401422791,1768201847407,-11536.32618384,0.00017335,2]
[401422793,1768201847419,-331.18764993,0.00017345,2]
[401422795,1768201847429,-150.0,0.00017357,2]
[401422797,1768201847439,-331.18764993,0.00017364,2]
[401422799,1768201847449,-150.0,0.0001737,2]
[401422801,1768201847461,-331.18764993,0.00017382,2]
[401422803,1768201847471,-1073.4,0.00017392,2]
[401422805,1768201847481,-150.0,0.000174,2]
[401422808,1768201847491,-150.0,0.000174,2]
[401422810,1768201847502,-331.18764993,0.000174,2]
[401422812,1768201847515,-150.0,0.000174,2]
[401422814,1768201847525,-150.0,0.000174,2]
[401422816,1768201847535,-5800.0,0.000174,6]
[401422818,1768201847545,-331.18764993,0.00017418,2]
[401422820,1768201847555,-331.18764993,0.00017436,2]
[401422822,1768201847565,-150.0,0.00017437,2]
[401422824,1768201847574,-150.0,0.00017437,2]
[401422826,1768201847584,-150.0,0.0001744,2]
[401422828,1768201847594,-150.0,0.00017446,2]
[401422831,1768201847604,-1000.0,0.00017447,2]
[401422833,1768201847614,-331.18764993,0.00017455,2]
[401422835,1768201847623,-150.0,0.0001746,2]
[401422837,1768201847633,-331.18764993,0.00017473,2]
[401422839,1768201847643,-150.0,0.00017475,2]
[401422841,1768201847653,-150.0,0.00017475,2]
[401422843,1768201847663,-150.0,0.00017486,2]
[401422845,1768201847677,-150.0,0.00017486,2]
[401422847,1768201847687,-331.18764993,0.00017491,2]
[401422849,1768201847698,-3469.0,0.00017491,2]
[401422851,1768201847710,-1330.0,0.00017491,2]
[401422854,1768201847720,-614.0,0.00017491,2]
[401422856,1768201847729,-505.0,0.00017491,2]
[401422858,1768201847741,-1267.0,0.00017491,2]
[401422860,1768201847751,-914.0,0.00017492,2]
[401422862,1768201847761,-1201.0,0.00017492,2]
[401422864,1768201847771,-2437.0,0.00017492,2]
[401422866,1768201847781,-4821.0,0.00017492,2]
[401422868,1768201847791,-6556.0,0.00017492,2]
[401422870,1768201847801,-1073.4,0.00017493,2]
[401422872,1768201847811,-1100.0,0.000175,6]
[401422874,1768201847822,-331.18764993,0.00017509,2]
[401422876,1768201847832,-317.89217192,0.00017518,2]
[401422878,1768201847842,-150.0,0.0001752,2]
[401422880,1768201847852,-2987.79350318,0.00017523,2]
[401422882,1768201847862,-331.18764993,0.00017527,2]
[401422884,1768201847873,-331.18764993,0.00017545,2]